bitfinex-derivatives/quotes_ETHF0:USTF0_20241023
["timestamp","ask_amount","ask_price","bid_price","bid_amount"]
[1729690272126,6.2378,2579.8,2579.4,40.8]
[1729690272433,6.2378,2579.8,2578.9,3.03]
[1729690272434,3.2078,2579.5,2579.1,0.38797]
[1729690272619,0.38797,2579.2,2579.1,0.4185]
[1729690275824,0.38798,2579.1,2579.0,40.8]
[1729690276028,0.38804,2578.7,2578.6,3.2078]
[1729690276230,3.41804,2578.7,2578.6,3.2078]
[1729690276536,7.57378556,2578.7,2578.6,3.2078]
[1729690276735,11.45138556,2578.7,2578.6,3.2078]
[1729690277029,0.38807,2578.5,2578.4,40.8]
[1729690277833,0.38807,2578.5,2578.0,0.77494]
[1729690277834,11.34349129,2578.5,2577.7,0.38818]
[1729690278133,3.03,2578.1,2577.7,0.4202]
[1729690278329,3.03,2578.1,2577.8,40.8]
[1729690278524,0.38816,2577.9,2577.8,40.8]
[1729690279635,3.41816,2577.9,2577.8,40.8]
[1729690280731,14.49756475,2577.9,2577.3,0.38824]
[1729690280936,3.41824,2577.4,2577.3,0.3985]
[1729690281143,3.41824,2577.4,2577.3,41.1985]
[1729690281735,3.41824,2577.4,2577.3,40.8]
[1729690284435,11.60147498,2577.4,2577.3,40.8]
[1729690285037,11.21323498,2577.4,2576.9,3.2078]
[1729690285338,0.3883,2577.0,2576.9,3.2078]
[1729690285935,3.03,2577.1,2576.9,3.2078]
[1729690286135,0.3883,2577.0,2576.9,3.2078]
[1729690286331,4.35157983,2577.0,2576.9,3.2078]
[1729690286536,4.73987983,2577.0,2576.9,3.2078]
[1729690286728,4.35157983,2577.0,2576.9,3.2078]
[1729690286929,3.03,2577.3,2577.0,0.38829]
[1729690286930,0.38826,2577.3,2577.0,0.38829]
[1729690287127,0.38829,2577.1,2576.9,3.2078]
[1729690287332,0.38829,2577.1,2576.9,3.59611]
[1729690287533,4.40400317,2577.4,2576.9,3.59611]
[1729690287732,0.38827,2577.2,2577.0,0.3883]
[1729690288035,0.3883,2577.0,2576.9,3.2078]
[1729690291434,3.03,2577.1,2576.9,3.2078]
[1729690291640,0.3883,2577.0,2576.9,3.2078]
[1729690292245,3.03,2577.1,2576.8,40.8]
[1729690292440,3.03,2576.9,2576.3,3.2078]
[1729690292646,8.38562021,2577.0,2576.1,0.4029]
[1729690292647,3.03,2576.4,2576.1,0.4029]
[1729690293141,3.03,2576.4,2576.1,41.2029]
[1729690293337,3.03,2576.4,2576.1,41.6109]
[1729690293538,0.38841,2576.3,2576.1,41.99933]
[1729690293737,3.41839,2576.4,2576.2,0.38841]
[1729690293939,0.38839,2576.4,2576.2,0.38841]
[1729690294342,0.3884,2576.3,2576.1,41.99932]
[1729690294539,3.03,2576.6,2576.1,41.6109]
[1729690294738,0.3884,2576.3,2576.1,41.6109]
[1729690294938,0.3884,2576.3,2576.1,41.99932]
[1729690295134,3.03,2576.6,2576.1,41.6109]
[1729690295339,0.38841,2576.3,2576.1,41.99933]
[1729690295545,0.38841,2576.3,2576.1,41.99932]
[1729690295739,0.38837,2576.5,2576.1,41.99932]
[1729690295933,4.00091,2576.6,2576.1,41.6109]
[1729690295934,3.03,2576.6,2576.1,41.6109]
[1729690296141,3.03,2576.6,2576.3,0.38839]
[1729690296142,0.38838,2576.5,2576.3,0.38839]
[1729690296447,0.38837,2576.6,2576.4,0.38838]
[1729690296648,3.03,2576.7,2576.4,0.38839]
[1729690296832,3.03,2576.7,2576.3,3.2078]
[1729690296833,3.03,2576.7,2576.3,3.59619]
[1729690297033,4.40431088,2576.8,2576.3,3.2078]
[1729690297237,4.40431088,2576.8,2576.6,3.59615]
[1729690297238,0.38833,2576.8,2576.6,3.59615]
[1729690297437,0.38833,2576.8,2576.7,0.8408]
[1729690297833,0.38832,2576.9,2576.7,0.8408]
[1729690298037,0.38833,2576.8,2576.7,1.22914]
[1729690299446,3.03,2577.1,2576.7,1.22914]
[1729690299841,3.41833,2576.8,2576.7,0.8408]
[1729690300436,3.41833,2576.8,2576.7,1.22914]
[1729690300641,0.38833,2576.8,2576.7,1.22914]
[1729690301049,3.03,2577.1,2576.7,0.8408]
[1729690301248,0.38833,2576.8,2576.7,1.22913]
[1729690302046,3.03,2577.1,2576.7,0.8408]
[1729690302242,0.38833,2576.8,2576.7,1.22913]
[1729690304250,0.38832,2576.9,2576.8,0.38832]
[1729690304446,3.03,2577.1,2576.7,0.8408]
[1729690304656,0.38833,2576.8,2576.7,1.22913]
[1729690305046,0.38833,2576.8,2576.7,0.8408]
[1729690305249,0.38833,2576.8,2576.7,1.22914]
[1729690306049,4.00071,2577.1,2576.7,1.22914]
[1729690306050,0.38831,2577.0,2576.9,0.3883]
[1729690306749,0.38828,2577.1,2577.0,0.38828]
[1729690306951,0.38829,2577.1,2577.0,0.38828]
[1729690307254,0.38829,2577.1,2576.7,0.8408]
[1729690307255,3.03,2577.1,2576.7,0.8408]
[1729690307456,0.38832,2576.9,2576.8,0.38832]
[1729690307848,3.03,2577.1,2576.7,0.8408]
[1729690308051,0.38833,2576.8,2576.7,1.22913]
[1729690308455,4.00072,2577.1,2576.7,0.8408]
[1729690308652,0.38832,2576.9,2576.8,0.38831]
[1729690309947,7.20846,2577.3,2576.8,3.2078]
[1729690310145,0.38827,2577.2,2577.1,0.38827]
[1729690310552,0.38827,2577.2,2577.1,41.18827]
[1729690311445,3.2078,2577.3,2577.1,40.8]
[1729690311645,3.03,2577.5,2577.1,40.8]
[1729690311646,3.41823,2577.5,2577.4,0.38824]
[1729690311850,3.2078,2577.9,2577.4,3.88]
[1729690312149,3.2078,2577.9,2577.8,0.38817]
[1729690312150,0.38817,2577.9,2577.8,0.38817]
[1729690312354,0.38817,2577.9,2577.5,1.37656]
[1729690312355,3.03,2578.0,2577.5,0.406]
[1729690312657,0.38818,2577.8,2577.7,0.38818]
[1729690312850,3.03,2577.8,2577.5,0.406]
[1729690313050,0.3882,2577.7,2577.6,0.3882]
[1729690313255,3.03,2577.8,2577.5,0.406]
[1729690313451,3.03,2577.6,2577.4,3.2078]
[1729690313760,0.38822,2577.5,2577.4,0.38823]
[1729690314058,3.03,2577.6,2577.2,0.397]
[1729690314245,3.41825,2577.4,2577.3,0.38824]
[1729690315252,0.38823,2577.5,2577.4,0.38823]
[1729690316951,0.38824,2577.4,2577.3,0.38824]
[1729690317154,0.38823,2577.5,2577.2,0.397]
[1729690317357,0.38823,2577.5,2577.4,0.38824]
[1729690317557,0.38824,2577.4,2577.3,0.38825]
[1729690317754,0.38822,2577.5,2577.4,0.38823]
[1729690318058,0.38823,2577.5,2577.4,0.38823]
[1729690319353,0.38823,2577.5,2577.2,0.397]
[1729690319354,0.38823,2577.5,2577.3,0.38824]
[1729690319761,3.03,2577.6,2577.4,0.38824]
[1729690320145,3.03,2577.6,2577.2,0.397]
[1729690320146,3.59599,2577.7,2577.6,0.3882]
[1729690320452,0.38816,2578.0,2577.8,0.38816]
[1729690320657,0.38816,2578.0,2577.9,0.80046]
[1729690320850,0.38816,2578.0,2577.9,0.4123]
[1729690321057,6.2378,2578.2,2577.9,0.4123]
[1729690321359,3.03,2578.2,2578.0,0.38814]
[1729690321549,3.03,2578.2,2577.9,0.80046]
[1729690321749,0.38814,2578.0,2577.9,0.4123]
[1729690321949,3.41814,2578.0,2577.9,0.4123]
[1729690322544,3.41814,2578.0,2577.6,0.4095]
[1729690322545,3.03,2578.0,2577.6,0.4095]
[1729690322745,3.03,2577.8,2577.1,44.0078]
[1729690322951,3.41824,2577.4,2577.3,0.3878]
[1729690323251,3.03,2577.6,2577.3,0.3878]
[1729690323455,0.38824,2577.4,2577.3,0.3878]
[1729690323948,0.38824,2577.4,2577.0,0.4217]
[1729690323949,3.03,2577.4,2577.0,0.4217]
[1729690324154,0.38829,2577.1,2577.0,0.38829]
[1729690324362,0.4255,2577.3,2576.9,0.3878]
[1729690324565,0.38828,2577.1,2577.0,41.18829]
[1729690326659,0.38828,2577.2,2577.1,0.38826]
[1729690326856,4.39874,2577.6,2577.2,0.38824]
[1729690326857,1.36874,2577.6,2577.2,0.38824]
[1729690327162,0.38817,2578.0,2577.9,0.38815]
[1729690327748,0.38817,2578.0,2577.9,41.18815]
[1729690328054,0.38816,2577.9,2577.8,0.78366]
[1729690328453,0.38816,2577.9,2577.8,41.58366]
[1729690329163,0.38816,2577.9,2577.8,41.1955]
[1729690329658,3.41816,2577.9,2577.8,40.8]
[1729690330164,0.38822,2577.5,2577.4,0.8102]
[1729690330453,0.38822,2577.5,2577.0,3.2078]
[1729690330454,0.38826,2577.3,2577.2,0.38826]
[1729690330658,3.03,2577.5,2577.2,0.38826]
[1729690330659,0.38824,2577.4,2577.3,0.38825]
[1729690331056,0.38824,2577.4,2577.3,0.38824]
[1729690331452,4.00049,2577.7,2577.2,40.8]
[1729690331453,0.38825,2577.3,2577.2,40.8]
[1729690331763,0.38825,2577.4,2577.2,41.18825]
[1729690332060,4.0005,2577.7,2577.2,41.18827]
[1729690332061,0.38825,2577.3,2577.2,41.18827]
[1729690332259,0.38825,2577.3,2577.2,40.8]
[1729690332560,0.38825,2577.3,2577.2,41.18827]
[1729690332962,0.38825,2577.3,2577.2,40.8]
[1729690333459,0.38825,2577.4,2577.2,41.18826]
[1729690333659,0.38825,2577.3,2577.2,40.8]
[1729690334163,0.38825,2577.4,2577.2,41.18827]
[1729690334361,0.38825,2577.3,2577.2,40.8]
[1729690336054,0.38825,2577.3,2576.7,0.38833]
[1729690336055,0.38831,2576.9,2576.7,0.38833]
[1729690336366,0.38831,2576.9,2576.8,0.3883]
[1729690336662,0.38831,2576.9,2576.8,41.1883]
[1729690337262,0.38831,2576.9,2576.8,40.8]
[1729690338959,4.11831,2576.9,2576.8,40.8]
[1729690339262,4.11831,2576.9,2576.5,0.388]
[1729690339263,0.38836,2576.6,2576.5,0.388]
[1729690339761,0.38836,2576.6,2576.5,41.188]
[1729690340064,0.38836,2576.6,2576.5,40.8]
[1729690340458,7.3485,2576.7,2576.1,1.20353]
[1729690340766,7.3485,2576.7,2576.1,0.8151]
[1729690340767,5.25644953,2576.6,2576.1,0.8151]
[1729690341062,0.38841,2576.3,2576.2,40.8]
[1729690341462,0.38841,2576.3,2576.2,41.18842]
[1729690342157,0.38841,2576.3,2576.2,40.8]
[1729690342358,0.38841,2576.3,2576.2,41.18842]
[1729690344255,3.2078,2576.7,2576.2,44.6816]
[1729690344457,3.2078,2576.7,2576.2,40.8]
[1729690344758,0.38836,2576.6,2576.5,0.38836]
[1729690345971,0.38836,2576.6,2576.2,41.77104]
[1729690345972,0.3884,2576.4,2576.3,0.38839]
[1729690346270,0.3884,2576.3,2576.2,41.18841]
[1729690346461,0.3884,2576.4,2576.3,0.38839]
[1729690346860,0.9709,2576.6,2576.2,40.8]
[1729690346861,0.3884,2576.3,2576.2,40.8]
[1729690352266,0.3884,2576.4,2576.2,40.8]
[1729690352472,3.2078,2576.5,2576.2,41.1884]
[1729690352473,0.3884,2576.3,2576.2,41.1884]
[1729690352859,0.38839,2576.4,2576.3,0.3884]
[1729690353364,3.2078,2576.5,2576.2,40.8]
[1729690353673,0.3884,2576.3,2576.2,41.18841]
[1729690354170,3.2078,2576.5,2576.2,40.8]
[1729690354370,0.38839,2576.4,2576.3,0.3884]
[1729690354566,3.03,2576.6,2576.2,40.8]
[1729690354766,0.38838,2576.5,2576.4,0.38839]
[1729690355175,0.38839,2576.4,2576.3,0.38839]
[1729690355363,3.03,2576.6,2576.3,0.38839]
[1729690355569,0.38839,2576.4,2576.3,0.38839]
[1729690355870,0.3884,2576.3,2576.2,40.8]
[1729690357061,3.03,2576.4,2576.1,0.77642]
[1729690357375,0.38846,2575.9,2575.8,3.2078]
[1729690357673,0.38846,2575.9,2575.8,44.0078]
[1729690358167,0.38846,2575.9,2575.8,40.8]
[1729690358168,0.78566,2575.9,2575.8,40.8]
[1729690358369,0.38855,2575.3,2575.2,0.38856]
[1729690358567,3.41855,2575.3,2575.2,0.38856]
[1729690358766,3.41855,2575.3,2575.2,41.18856]
[1729690359470,3.03,2575.3,2575.2,41.18856]
[1729690359675,3.41855,2575.3,2575.2,40.8]
[1729690361668,0.38855,2575.4,2575.3,0.38855]
[1729690362271,0.38853,2575.5,2575.4,0.38854]
[1729690362864,0.38853,2575.5,2575.3,0.4047]
[1729690362865,0.38852,2575.6,2575.5,0.38852]
[1729690363468,0.38853,2575.5,2575.4,0.38853]
[1729690363873,0.38851,2575.6,2575.5,0.38852]
[1729690364078,0.38852,2575.5,2575.4,0.38853]
[1729690364274,0.38852,2575.6,2575.4,0.38853]
[1729690364573,0.38852,2575.6,2575.5,0.4269]
[1729690365274,0.38852,2575.6,2575.2,40.8]
[1729690365275,0.38855,2575.3,2575.2,40.8]
[1729690366275,0.38857,2575.2,2575.1,3.6204]
[1729690366475,0.38857,2575.2,2574.8,0.78192]
[1729690366476,0.38861,2574.9,2574.8,0.78192]
[1729690366677,0.38861,2574.9,2574.8,41.58192]
[1729690367370,0.38861,2574.9,2574.8,41.1933]
[1729690367864,0.38864,2574.7,2574.6,3.6204]
[1729690368272,0.38864,2574.7,2574.6,44.4204]
[1729690368971,0.38864,2574.7,2574.6,44.80906]
[1729690369175,0.97146,2575.1,2574.6,44.4204]
[1729690369372,0.38864,2574.8,2574.7,0.38864]
[1729690369579,0.38862,2574.9,2574.8,0.38862]
[1729690369779,4.50642906,2575.0,2574.9,0.38861]
[1729690369974,0.3886,2575.0,2574.8,0.38862]
[1729690370369,7.3482,2575.2,2574.8,0.38862]
[1729690370574,7.3482,2575.2,2574.6,44.4204]
[1729690370769,0.38862,2574.9,2574.7,0.38864]
[1729690370973,0.38862,2574.9,2574.6,44.4204]
[1729690370974,0.3886,2575.0,2574.6,44.4204]
[1729690371172,0.38861,2574.9,2574.8,0.38862]
[1729690371481,0.3886,2575.0,2574.9,0.38861]
[1729690371780,0.38862,2574.9,2574.8,0.38863]
[1729690372577,0.9715,2575.0,2574.6,44.4204]
[1729690372776,0.38864,2574.7,2574.6,44.80906]
[1729690372977,0.38864,2574.7,2574.6,44.4204]
[1729690373183,0.38864,2574.7,2574.6,44.80906]
[1729690373478,0.38864,2574.7,2574.6,44.80905]
[1729690373677,0.97146,2575.1,2574.6,44.4204]
[1729690374079,0.38864,2574.7,2574.6,44.80905]
[1729690374470,0.38864,2574.7,2574.6,44.4204]
[1729690374872,0.38864,2574.7,2574.6,44.80906]
[1729690375174,0.38864,2574.7,2574.6,44.4204]
[1729690375878,0.38863,2574.8,2574.7,0.38864]
[1729690376185,8.31963,2575.2,2574.8,0.38862]
[1729690376377,4.07869469,2575.1,2574.6,44.4204]
[1729690376679,0.38864,2574.8,2574.6,44.80904]
[1729690376977,0.38864,2574.7,2574.6,44.80904]
[1729690377373,0.9715,2575.0,2574.6,44.4204]
[1729690377574,0.38864,2574.8,2574.7,0.38864]
[1729690377776,0.38862,2574.9,2574.8,0.38862]
[1729690377980,0.3886,2575.0,2574.9,0.3886]
[1729690378683,3.59638,2575.2,2575.0,0.38858]
[1729690378981,3.59638,2575.2,2575.1,0.4263]
[1729690379180,3.2078,2575.2,2575.1,1.22728]
[1729690379676,0.38856,2575.3,2575.2,0.38857]
[1729690379876,4.0462,2575.7,2575.1,0.8387]
[1729690380279,0.38854,2575.4,2575.3,0.38854]
[1729690380480,3.2078,2575.7,2575.2,3.6266]
[1729690380675,3.5963,2575.7,2575.6,0.38851]
[1729690380872,0.38851,2575.6,2575.5,0.38851]
[1729690381074,3.2078,2575.7,2575.3,0.97139]
[1729690381281,3.5963,2575.7,2575.6,0.38851]
[1729690381582,0.38851,2575.6,2575.5,0.38851]
[1729690382373,3.2078,2575.7,2575.3,0.97139]
[1729690382679,0.38851,2575.6,2575.5,0.38851]
[1729690382877,3.5963,2575.7,2575.6,0.38851]
[1729690383078,3.5963,2575.7,2575.3,0.97138]
[1729690383079,0.38851,2575.6,2575.5,0.38851]
[1729690383283,3.2078,2575.7,2575.2,4.59802]
[1729690383790,3.2078,2575.7,2575.2,3.6266]
[1729690383978,0.38855,2575.3,2575.2,3.2078]
[1729690384176,0.38855,2575.3,2575.1,0.81487]
[1729690384177,0.38857,2575.2,2575.1,0.81487]
[1729690384583,0.38857,2575.2,2575.1,0.4263]
[1729690384880,0.38857,2575.2,2575.1,0.81488]
[1729690386487,4.70131,2575.5,2575.1,0.4263]
[1729690386686,0.9712,2575.9,2575.1,3.6341]
[1729690386890,0.38849,2575.8,2575.7,0.38847]
[1729690387086,4.67112065,2576.1,2575.5,0.421]
[1729690387287,0.38847,2575.9,2575.8,0.38846]
[1729690387488,0.97103,2576.3,2575.7,3.2078]
[1729690387489,0.4277,2576.3,2575.7,3.2078]
[1729690387787,0.38847,2575.9,2575.8,41.18847]
[1729690387995,1.39872,2576.3,2575.8,41.18847]
[1729690387996,5.12872,2576.3,2575.8,41.18847]
[1729690388182,0.38846,2575.9,2575.8,40.8]
[1729690388378,3.41846,2575.9,2575.8,40.8]
[1729690390280,10.1202,2575.9,2575.1,3.2078]
[1729690390487,3.41852,2575.6,2575.4,0.38853]
[1729690390683,3.41852,2575.6,2575.2,0.4157]
[1729690390889,3.41852,2575.6,2575.4,0.38853]
[1729690391085,3.03,2575.6,2575.4,0.38853]
[1729690391288,3.41852,2575.6,2575.4,0.38853]
[1729690391482,3.03,2575.6,2575.3,40.8]
[1729690391687,0.38853,2575.5,2575.4,0.38854]
[1729690391995,0.38852,2575.6,2575.5,0.38852]
[1729690392692,0.3885,2575.7,2575.5,0.38852]
[1729690392890,0.3885,2575.7,2575.5,0.38851]
[1729690393091,0.38849,2575.7,2575.5,0.38851]
[1729690393288,3.03,2575.8,2575.4,3.2078]
[1729690393491,0.3885,2575.7,2575.6,0.3885]
[1729690393692,3.03,2575.8,2575.4,3.2078]
[1729690393891,3.03,2575.8,2575.5,0.38851]
[1729690393892,0.38849,2575.7,2575.5,0.38851]
[1729690394100,3.03,2575.8,2575.5,0.38851]
[1729690394298,0.38849,2575.7,2575.5,0.38851]
[1729690394792,3.03,2575.8,2575.4,3.2078]
[1729690394793,0.38852,2575.5,2575.4,3.2078]
[1729690394996,0.38852,2575.6,2575.4,3.59633]
[1729690395185,0.38852,2575.6,2575.5,0.3931]
[1729690395691,0.38852,2575.6,2575.5,0.78162]
[1729690395886,0.3885,2575.7,2575.6,0.38851]
[1729690396297,4.17893,2576.0,2575.5,0.3931]
[1729690396298,3.03,2576.0,2575.5,0.3931]
[1729690396595,3.03,2576.0,2575.5,0.78161]
[1729690396596,4.00113,2576.0,2575.5,0.78161]
[1729690396892,0.38851,2575.6,2575.5,0.78161]
[1729690397299,0.38851,2575.6,2575.5,0.3931]
[1729690397493,0.3972,2575.7,2575.3,41.18854]
[1729690397703,0.38854,2575.4,2575.3,41.18854]
[1729690397898,0.38854,2575.4,2575.1,0.3931]
[1729690397899,0.38857,2575.2,2575.1,0.3931]
[1729690398102,0.38861,2574.9,2574.8,0.7893]
[1729690399096,0.38861,2575.0,2574.8,0.7893]
[1729690399406,0.38861,2575.0,2574.9,0.38861]
[1729690399593,0.38861,2575.0,2574.8,0.7893]
[1729690399893,0.38861,2575.0,2574.9,0.38861]
[1729690400094,0.38856,2575.3,2575.2,0.38856]
[1729690400297,3.2078,2575.5,2574.8,3.8193]
[1729690400491,0.38858,2575.1,2575.0,3.59639]
[1729690400997,0.38858,2575.1,2575.0,7.47959]
[1729690401198,0.38858,2575.1,2575.0,3.2078]
[1729690401790,3.03,2575.2,2574.8,0.7893]
[1729690402092,3.03,2575.2,2574.8,1.17792]
[1729690402093,0.38861,2574.9,2574.8,1.17792]
[1729690402594,0.38861,2575.0,2574.9,0.3886]
[1729690402790,0.38861,2575.0,2574.8,3.9971]
[1729690402791,0.38859,2575.1,2575.0,0.38859]
[1729690402995,0.38861,2575.0,2574.9,0.3886]
[1729690403995,0.38863,2574.8,2574.7,40.8]
[1729690404801,0.38861,2575.0,2574.9,0.3886]
[1729690405008,0.38859,2575.1,2575.0,0.38858]
[1729690405300,4.12396368,2575.4,2574.9,0.4047]
[1729690405695,0.38859,2575.1,2575.0,0.38859]
[1729690405892,0.38858,2575.2,2575.1,0.38857]
[1729690406091,1.36281,2575.5,2575.1,0.38858]
[1729690406300,0.38858,2575.2,2575.1,0.38858]
[1729690406499,0.38858,2575.1,2575.0,0.38859]
[1729690406697,0.38858,2575.2,2575.1,0.38858]
[1729690406900,0.38856,2575.3,2575.2,0.38856]
[1729690407103,0.38858,2575.2,2575.1,0.38858]
[1729690407504,0.38858,2575.1,2575.0,0.38859]
[1729690408010,3.03,2575.4,2574.8,3.6001]
[1729690408507,1.36282,2575.5,2574.8,3.6001]
[1729690408712,0.38857,2575.3,2574.9,0.97154]
[1729690408903,0.38854,2575.4,2575.1,0.38857]
[1729690409109,1.36282,2575.5,2575.1,0.38857]
[1729690409300,0.38857,2575.2,2575.1,0.38857]
[1729690410101,0.38857,2575.2,2575.0,0.38859]
[1729690410308,0.3886,2575.0,2574.9,0.3886]
[1729690410501,0.38861,2575.0,2574.9,0.38861]
[1729690410716,0.97139,2575.3,2574.8,3.98872]
[1729690410717,0.38861,2574.9,2574.8,3.98872]
[1729690412100,0.38861,2574.9,2574.8,3.2078]
[1729690412312,0.38861,2574.9,2574.8,3.59643]
[1729690412513,0.38861,2574.9,2574.8,3.2078]
[1729690412706,0.38861,2574.9,2574.8,3.59643]
[1729690415305,0.38861,2574.9,2574.8,4.01683]
[1729690416406,0.38861,2574.9,2574.8,3.6282]
[1729690416627,0.38861,2574.9,2574.7,41.18864]
[1729690416628,0.38863,2574.8,2574.7,40.8]
[1729690417906,0.8013,2575.1,2574.7,40.8]
[1729690418109,0.38861,2575.0,2574.9,0.38861]
[1729690419014,0.38861,2574.9,2574.8,0.77582]
[1729690419716,0.38861,2575.0,2574.9,0.38861]
[1729690421408,4.17908,2575.6,2574.9,6.9132]
[1729690421617,0.38857,2575.3,2575.2,0.38856]
[1729690422308,0.38857,2575.3,2575.0,0.7991]
[1729690422309,0.38857,2575.2,2575.1,0.38857]
[1729690422705,0.38856,2575.3,2575.2,0.38856]
[1729690422910,0.97132,2575.5,2575.0,0.7991]
[1729690423104,3.6015,2575.6,2575.0,0.7991]
[1729690423416,0.38855,2575.4,2575.3,0.38855]
[1729690424011,3.6015,2575.6,2575.0,1.77059]
[1729690424213,0.38851,2575.6,2575.3,1.35994]
[1729690424519,0.38851,2575.6,2575.5,0.38851]
[1729690424909,0.38851,2575.6,2575.5,0.77701]
[1729690425419,0.38851,2575.6,2575.5,0.3885]
[1729690425718,0.9712,2575.8,2575.4,4.0511]
[1729690425906,0.38852,2575.6,2575.5,0.38852]
[1729690427710,0.38852,2575.5,2575.4,4.43962]
[1729690428111,0.9712,2575.8,2575.5,0.38852]
[1729690428112,0.38852,2575.6,2575.5,0.38852]
[1729690428310,0.38852,2575.5,2575.4,4.43962]
[1729690428913,0.9712,2575.8,2575.4,4.0511]
[1729690429113,0.38852,2575.6,2575.5,0.38851]
[1729690429513,0.38852,2575.5,2575.4,4.43962]
[1729690430309,3.03,2575.7,2575.4,4.0511]
[1729690430515,0.38852,2575.6,2575.5,0.38851]
[1729690431512,3.5989,2575.9,2575.5,0.38851]
[1729690431513,3.59623,2576.2,2576.1,0.38843]
[1729690431717,0.38843,2576.2,2576.1,0.38843]
[1729690432714,0.38843,2576.1,2576.0,44.0078]
[1729690433024,4.00098,2576.4,2576.0,44.0078]
[1729690433316,0.38843,2576.1,2576.0,44.39623]
[1729690433512,0.38843,2576.2,2576.1,0.38843]
[1729690434117,3.03,2576.4,2576.0,44.0078]
[1729690434312,0.38843,2576.2,2576.1,0.38842]
[1729690435818,0.38843,2576.1,2576.0,44.0078]
[1729690436019,0.38843,2576.1,2576.0,3.2078]
[1729690436427,0.38845,2576.0,2575.9,0.8439]
[1729690436719,3.03,2576.0,2575.6,41.2144]
[1729690436917,3.03,2576.0,2575.5,3.2078]
[1729690436918,3.03,2575.7,2575.5,3.2078]
[1729690437119,0.38851,2575.6,2575.5,3.59631]
[1729690437322,0.38851,2575.6,2575.5,3.2078]
[1729690438117,0.38851,2575.6,2575.5,3.59632]
[1729690438320,0.38851,2575.6,2575.5,3.2078]
[1729690438719,0.38851,2575.6,2575.5,44.39632]
[1729690440025,0.38851,2575.6,2575.5,3.59632]
[1729690440422,0.38851,2575.6,2575.5,3.2078]
[1729690440628,0.38851,2575.6,2575.5,3.59632]
[1729690446234,0.38851,2575.6,2575.5,3.2078]
[1729690446431,0.38851,2575.6,2575.5,3.59632]
[1729690446652,0.38851,2575.6,2575.5,3.2078]
[1729690447333,0.38851,2575.6,2575.1,0.4027]
[1729690447334,0.38857,2575.2,2575.1,0.81118]
[1729690447739,0.38857,2575.2,2575.1,41.2226]
[1729690448838,0.38857,2575.2,2574.8,3.2078]
[1729690448839,11.37036581,2575.2,2574.8,3.2078]
[1729690449046,0.38861,2574.9,2574.8,3.59642]
[1729690449235,0.38861,2574.9,2574.8,3.2078]
[1729690449437,0.38861,2574.9,2574.8,44.0078]
[1729690450734,4.41368,2575.4,2574.8,47.8918]
[1729690450937,4.59132,2575.5,2574.9,4.00154]
[1729690451141,0.38856,2575.3,2575.2,0.38856]
[1729690451340,0.4247,2575.7,2575.1,4.56865]
[1729690451537,0.4247,2575.7,2575.6,0.3885]
[1729690451538,0.38849,2575.7,2575.6,0.3885]
[1729690451933,0.3885,2575.7,2575.6,0.3885]
[1729690452445,0.38851,2575.6,2575.5,0.38852]
[1729690452641,0.3885,2575.7,2575.6,0.3885]
[1729690452848,4.00113,2576.0,2575.4,3.6072]
[1729690453047,0.38851,2575.6,2575.5,0.38851]
[1729690453342,0.38849,2575.8,2575.7,0.38849]
[1729690453540,3.03,2576.0,2575.5,0.4131]
[1729690453745,0.38848,2575.8,2575.7,0.38848]
[1729690454238,3.2078,2576.2,2575.7,7.0902]
[1729690454442,4.00096,2576.5,2575.8,3.8556]
[1729690454443,3.2078,2576.5,2575.8,3.8556]
[1729690454650,0.3884,2576.4,2576.3,0.3884]
[1729690454841,0.3884,2576.4,2576.3,41.1884]
[1729690455044,0.38836,2576.6,2576.3,44.0078]
[1729690455349,3.59613,2576.8,2576.6,0.38835]
[1729690455546,3.2078,2576.8,2576.7,0.38834]
[1729690455750,0.3883,2577.0,2576.6,3.2078]
[1729690456046,4.54974369,2577.2,2576.9,0.3883]
[1729690456242,4.54974369,2577.2,2576.9,3.2078]
[1729690456442,0.38828,2577.1,2576.9,3.5961]
[1729690456842,3.8335,2577.5,2576.9,3.2078]
[1729690456843,0.3883,2577.0,2576.9,3.2078]
[1729690457044,0.38829,2577.1,2576.9,3.59611]
[1729690457854,0.38828,2577.2,2576.9,3.59611]
[1729690458148,0.38828,2577.2,2576.9,3.2078]
[1729690458149,4.24189474,2577.2,2576.9,3.2078]
[1729690458345,4.24189474,2577.2,2576.9,3.5961]
[1729690458539,4.3828,2577.7,2576.9,3.2078]
[1729690458540,0.38824,2577.4,2576.9,3.2078]
[1729690458745,3.03,2577.7,2577.2,3.2078]
[1729690458746,0.38825,2577.3,2577.2,3.2078]
[1729690458958,0.38824,2577.4,2577.2,3.2078]
[1729690460050,0.97041,2577.9,2577.2,3.2078]
[1729690460247,0.38824,2577.4,2577.3,0.3957]
[1729690460452,3.03,2577.7,2577.3,0.3957]
[1729690460652,0.38824,2577.4,2577.3,0.3957]
[1729690463252,3.03,2577.9,2577.3,0.3957]
[1729690463553,3.03,2577.9,2577.4,0.38822]
[1729690463554,4.48176975,2577.8,2577.4,0.38822]
[1729690463744,0.38823,2577.5,2577.3,0.3957]
[1729690463950,0.38823,2577.5,2577.3,0.78394]
[1729690464755,0.38823,2577.5,2577.4,0.38824]